Workbook

Sheet Janvier
A1: Janvier
A2: CHARGES | B2: PREV | C2: PRODUITS | D2: PREV
F3: Répartition des revenus
A4: Intitulé | F4: =C5 -> Pierre | G4: =SUM(D5) -> 1000 | H4: =G4/$G$8 -> 0.5194805195
A5: Charges essentielles | C5: Pierre | D5: =SUM(D6:D9) -> 1000 | F5: =C10 -> Paul | G5: =D10 -> 500 | H5: =G5/$G$8 -> 0.2597402597
A6: PRELEVEMENTS | C6: Paie : | D6: 1000 | F6: =C15 -> Jacques | G6: =D15 -> 250 | H6: 0.1298701299
A7: Loyer | B7: 630 | C7: CAF : | F7: =C20 -> Luc | G7: =D20 -> 175 | H7: 0.09090909091
A8: EDF | B8: 152.26 | C8: Prime : | G8: =SUM(G4:G7) -> 1925
A9: Eau | B9: 71 | C9: Autres : | K9: Revenus | L9: Participation | M9: Pourcentage de participation
C10: Paul | D10: =SUM(D11:D14) -> 500 | F10: CHARGES : | H10: =B47 -> 899.75 | J10: =F4 -> Pierre | K10: 1000 | L10: =H12 -> 467.4025974 | M10: =L10/K10 -> 0.4674025974
C11: Paie : | D11: 500 | F11: Participation aux charges | J11: Paul | K11: 500 | L11: =H13 -> 233.7012987 | M11: =L11/K11 -> 0.4674025974
C12: CAF : | G12: =F4 -> Pierre | H12: =H4*H10 -> 467.4025974 | J12: =F6 -> Jacques | K12: 250 | L12: =H14 -> 116.8506494 | M12: =L12/K12 -> 0.4674025974
C13: Prime : | G13: =F5 -> Paul | H13: =H5*H10 -> 233.7012987 | J13: =F7 -> Luc | K13: =G7 -> 175 | L13: =H15 -> 81.79545455 | M13: =L13/K13 -> 0.4674025974
C14: Autres : | G14: =F6 -> Jacques | H14: =H6*$H$10 -> 116.8506494
C15: Jacques | D15: =SUM(D16:D19) -> 250 | G15: =F7 -> Luc | H15: =H7*$H$10 -> 81.79545455
C16: Paie : | D16: 250 | H16: =SUM(H12:H15) -> 899.75
C17: CAF : | F17: A déposer sur le compte commun
C18: Prime :
C19: Autres : | F19: Reste
C20: Luc | D20: =SUM(D21:D24) -> 175 | F20: =G12 -> Pierre | H20: =G4-H12 -> 532.5974026
C21: Paie : | D21: 175 | F21: =G13 -> Paul | H21: =G5-H13 -> 266.2987013
C22: CAF : | F22: =G14 -> Jacques | H22: =G6-H14 -> 133.1493506
C23: Prime : | F23: =G15 -> Luc | H23: =G7-H15 -> 93.20454545
C24: Autres : | H24: =SUM(H20:H23) -> 1025.25
A31: NON PRELEVE
A35: Courses | B35: =B51 -> 0
A36: SOUS-TOTAL | B36: =SUM(B7:B35) -> 853.26 | C36: TOTAL | D36: =SUM(D5+D10) -> 1500
C37: SOUS-RESULTAT | D37: =SUM(D36-B36) -> 646.74
A38: Charges non essentielles
A39: Fer à repasser | B39: 44.99
A40: Voyage | B40: 1.5
A41: Autres | B41: =D51 -> 0
A46: SOUS-TOTAL | B46: =SUM(B39:B45) -> 46.49
A47: TOTAL CHARGES | B47: =SUM(B36,B46) -> 899.75 | C47: TOTAL PRODUITS | D47: =D36 -> 1500
C48: RESULTAT | D48: =D47-B47 -> 600.25
A51: Courses | B51: =SUM(B52:B61) -> 0 | C51: =A41 -> Autres | D51: =SUM(D52:D61) -> 0
